{"text_format":"1","workbook":"xlsx","n_sheets":6,"sheets":["INICIO","CONFIGURACION","DIARIO DE MOVIMIENTOS","PANEL DE DECISIONES","REPORTE PDF","AYUDA"],"not_rendered":{"charts":4,"images":0,"macros":1,"external_links":0,"defined_names":3,"comments":0,"pivot_tables":0},"unopened":[],"bounds":{"document_bytes":16777216,"sheet_cells":100000,"rows_first":2000,"rows_last":500,"rows_between":2000,"halvings":0,"cell_chars":16384,"cell_head_chars":4096},"cells_cut":0,"cells_raw":0,"read":"whole","date_system":"1900"}

{"sheet":"INICIO","index":0,"n_rows":35,"n_cols":6,"rows_kept":35,"cut":false,"hidden":false,"merged":[[1,1,1,13],[13,1,13,13],[24,2,24,4],[2,1,2,13],[8,2,8,12],[32,1,32,13],[4,1,4,13],[34,1,34,13],[9,2,9,12],[6,1,6,13],[15,2,15,4],[18,5,18,12],[21,2,21,4],[24,5,24,12],[15,5,15,12],[27,2,27,4],[11,2,11,12],[18,2,18,4],[10,2,10,12],[21,5,21,12],[27,5,27,12]]}
[]
[null,"MAESTRO DE GASTOS DIARIOS PRO"]
[null,"Tu Sistema Inteligente de Control Financiero Personal"]
[]
[null,"¿Sabías que el 78% de las personas no saben a dónde va su dinero cada mes?"]
[]
[null,"IMAGINA ESTO:"]
[]
[null,null,"✦  Abres tu plantilla cada mañana y en 30 segundos registras tus gastos del día."]
[null,null,"✦  Al final de la semana, un panel inteligente te muestra EXACTAMENTE a dónde fue cada peso."]
[null,null,"✦  Al cerrar el mes, generas un informe PDF profesional que te dice si vas bien... o si necesitas ajustar."]
[null,null,"✦  Sin apps costosas. Sin suscripciones. Sin complicaciones. Solo tú y tu Excel."]
[]
[null,"¿QUÉ INCLUYE ESTA HERRAMIENTA?"]
[]
[null,null,"📝 Diario de Movimientos",null,null,"Registra cada ingreso y gasto con categorías inteligentes y listas desplegables dependientes."]
[]
[]
[null,null,"📊 Panel de Decisiones",null,null,"Dashboard en tiempo real con KPIs, gráficos 3D y filtro por periodo (mes o total)."]
[]
[]
[null,null,"📄 Reporte PDF",null,null,"Informe ejecutivo exportable con un solo clic. Perfecto para presentar a tu pareja, socio o contador."]
[]
[]
[null,null,"⚙️ Configuración",null,null,"Personaliza categorías de gasto y fuentes de ingreso según TU realidad financiera."]
[]
[]
[null,null,"❓ Centro de Ayuda",null,null,"Guía paso a paso para que domines la herramienta en menos de 5 minutos."]
[]
[]
[]
[]
[null,"EMPIEZA AHORA → Ve a la hoja 'DIARIO DE MOVIMIENTOS' y registra tu primer gasto"]
[]
[null,"Versión 1.0  |  Diseñado para quienes quieren tomar el control de su dinero  |  No requiere conocimientos avanzados"]

{"sheet":"CONFIGURACION","index":1,"n_rows":9,"n_cols":3,"rows_kept":9,"cut":false,"hidden":false,"merged":[]}
["Categorías de Gasto","Fuentes de Ingreso","Tipos"]
["Alimentación","Salario","Gasto"]
["Transporte","Freelance","Ingreso"]
["Ocio","Inversiones"]
["Servicios"]
["Alquiler"]
["Salud"]
["Educación"]
["Ropa"]

{"sheet":"DIARIO DE MOVIMIENTOS","index":2,"n_rows":51,"n_cols":6,"rows_kept":51,"cut":false,"hidden":false,"merged":[]}
["Fecha","Categoría","Descripción","Tipo","Valor","Mes"]
["2026-02-03","Servicios","Internet Claro","Gasto",7000,{"$f":"TEXT(A2,\"mmmm\")","v":"febrero"}]
["2026-02-04","Alquiler","Arriendo apto","Gasto",20000,{"$f":"TEXT(A3,\"mmmm\")","v":"febrero"}]
["2026-02-05","Transporte","Uber al trabajo","Gasto",231000,"febrero"]
["2026-02-05","Educación","Curso Udemy","Gasto",106000,"febrero"]
["2026-02-06","Ropa","Camiseta Zara","Gasto",232000,"febrero"]
["2026-02-07","Ropa","Camiseta Zara","Gasto",116000,"febrero"]
["2026-02-09","Transporte","Peaje","Gasto",217000,"febrero"]
["2026-02-13","Freelance","Consultoría","Ingreso",1500000,"febrero"]
["2026-02-17","Alquiler","Arriendo apto","Gasto",45000,"febrero"]
["2026-02-19","Transporte","Peaje","Gasto",219000,"febrero"]
["2026-02-19","Ocio","Netflix mensual","Gasto",138000,"febrero"]
["2026-02-19","Alimentación","Supermercado Éxito","Gasto",115000,"febrero"]
["2026-02-23","Servicios","Factura luz","Gasto",242000,"febrero"]
["2026-02-24","Inversiones","Dividendos","Ingreso",350000,"febrero"]
["2026-02-25","Ocio","Cine con amigos","Gasto",178000,"febrero"]
["2026-02-26","Alquiler","Arriendo apto","Gasto",60000,"febrero"]
["2026-02-28","Freelance","Consultoría","Ingreso",500000,"febrero"]
["2026-02-28","Servicios","Plan celular","Gasto",180000,"febrero"]
["2026-02-28","Transporte","Gasolina carro","Gasto",111000,"febrero"]
["2026-03-02","Salario","Nómina quincenal","Ingreso",350000,"marzo"]
["2026-03-02","Alimentación","Frutas plaza","Gasto",75000,"marzo"]
["2026-03-06","Servicios","Plan celular","Gasto",189000,"marzo"]
["2026-03-07","Ropa","Camiseta Zara","Gasto",211000,"marzo"]
["2026-03-07","Alimentación","Domicilio Rappi","Gasto",20000,"marzo"]
["2026-03-10","Ropa","Camiseta Zara","Gasto",55000,"marzo"]
["2026-03-11","Servicios","Plan celular","Gasto",32000,"marzo"]
["2026-03-12","Ropa","Camiseta Zara","Gasto",182000,"marzo"]
["2026-03-14","Alimentación","Domicilio Rappi","Gasto",136000,"marzo"]
["2026-03-18","Educación","Curso Udemy","Gasto",249000,"marzo"]
["2026-03-20","Alquiler","Arriendo apto","Gasto",183000,"marzo"]
["2026-03-25","Alimentación","Domicilio Rappi","Gasto",133000,"marzo"]
["2026-03-26","Transporte","Uber al trabajo","Gasto",178000,"marzo"]
["2026-03-27","Salud","Gimnasio","Gasto",55000,"marzo"]
["2026-04-01","Educación","Curso Udemy","Gasto",123000,"abril"]
["2026-04-03","Salario","Nómina mensual","Ingreso",1500000,"abril"]
["2026-04-04","Freelance","Proyecto diseño web","Ingreso",2000000,"abril"]
["2026-04-04","Alquiler","Cuota admin","Gasto",34000,"abril"]
["2026-04-04","Inversiones","Dividendos","Ingreso",1500000,"abril"]
["2026-04-08","Educación","Libros","Gasto",248000,"abril"]
["2026-04-09","Alimentación","Almuerzo restaurante","Gasto",188000,"abril"]
["2026-04-15","Educación","Curso Udemy","Gasto",150000,"abril"]
["2026-04-15","Salario","Nómina quincenal","Ingreso",500000,"abril"]
["2026-04-18","Educación","Libros","Gasto",100000,"abril"]
["2026-04-19","Salud","Consulta médica","Gasto",59000,"abril"]
["2026-04-21","Inversiones","Dividendos","Ingreso",350000,"abril"]
["2026-04-21","Ropa","Camiseta Zara","Gasto",70000,"abril"]
["2026-04-21","Freelance","Consultoría","Ingreso",1500000,"abril"]
["2026-04-23","Salud","Farmacia","Gasto",65000,"abril"]
["2026-04-23","Ropa","Zapatos Nike","Gasto",237000,"abril"]
["2026-04-25","Servicios","Plan celular","Gasto",110000,"abril"]

{"sheet":"PANEL DE DECISIONES","index":3,"n_rows":22,"n_cols":8,"rows_kept":22,"cut":false,"hidden":false,"merged":[[0,1,0,13]]}
[null,"PANEL DE DECISIONES FINANCIERAS"]
[]
[null,"Seleccione Periodo:","Todos",null,null,null,null,{"$f":"IF(C3=\"Todos\",0,IF(C3=\"Mes Actual\",MONTH(TODAY()),IF(C3=\"Febrero\",2,IF(C3=\"Marzo\",3,IF(C3=\"Abril\",4,0)))))","v":0}]
[]
[null,"GASTOS TOTALES",{"$f":"IF($H$3=0,SUMIFS('DIARIO DE MOVIMIENTOS'!$E$2:$E$51,'DIARIO DE MOVIMIENTOS'!$D$2:$D$51,\"Gasto\"),SUMIFS('DIARIO DE MOVIMIENTOS'!$E$2:$E$51,'DIARIO DE MOVIMIENTOS'!$D$2:$D$51,\"Gasto\",'DIARIO DE MOVIMIENTOS'!$F$2:$F$51,$H$3))","v":5299000}]
[null,"INGRESOS TOTALES",{"$f":"IF($H$3=0,SUMIFS('DIARIO DE MOVIMIENTOS'!$E$2:$E$51,'DIARIO DE MOVIMIENTOS'!$D$2:$D$51,\"Ingreso\"),SUMIFS('DIARIO DE MOVIMIENTOS'!$E$2:$E$51,'DIARIO DE MOVIMIENTOS'!$D$2:$D$51,\"Ingreso\",'DIARIO DE MOVIMIENTOS'!$F$2:$F$51,$H$3))","v":10050000}]
[null,"BALANCE NETO",{"$f":"C6-C5","v":4751000}]
[]
[null,"DESGLOSE POR CATEGORÍA","Monto","% Total"]
[null,{"$f":"CONFIGURACION!A2","v":"Alimentación"},{"$f":"IF($H$3=0,SUMIFS('DIARIO DE MOVIMIENTOS'!$E$2:$E$51,'DIARIO DE MOVIMIENTOS'!$D$2:$D$51,\"Gasto\",'DIARIO DE MOVIMIENTOS'!$B$2:$B$51,B10),SUMIFS('DIARIO DE MOVIMIENTOS'!$E$2:$E$51,'DIARIO DE MOVIMIENTOS'!$D$2:$D$51,\"Gasto\",'DIARIO DE MOVIMIENTOS'!$F$2:$F$51,$H$3,'DIARIO DE MOVIMIENTOS'!$B$2:$B$51,B10))","v":667000},{"$f":"IFERROR(C10/C5,0)","v":0.12587280618984714}]
[null,{"$f":"CONFIGURACION!A3","v":"Transporte"},{"$f":"IF($H$3=0,SUMIFS('DIARIO DE MOVIMIENTOS'!$E$2:$E$51,'DIARIO DE MOVIMIENTOS'!$D$2:$D$51,\"Gasto\",'DIARIO DE MOVIMIENTOS'!$B$2:$B$51,B11),SUMIFS('DIARIO DE MOVIMIENTOS'!$E$2:$E$51,'DIARIO DE MOVIMIENTOS'!$D$2:$D$51,\"Gasto\",'DIARIO DE MOVIMIENTOS'!$F$2:$F$51,$H$3,'DIARIO DE MOVIMIENTOS'!$B$2:$B$51,B11))","v":956000},{"$f":"IFERROR(C11/C5,0)","v":0.18041139837705228}]
[null,{"$f":"CONFIGURACION!A4","v":"Ocio"},{"$f":"IF($H$3=0,SUMIFS('DIARIO DE MOVIMIENTOS'!$E$2:$E$51,'DIARIO DE MOVIMIENTOS'!$D$2:$D$51,\"Gasto\",'DIARIO DE MOVIMIENTOS'!$B$2:$B$51,B12),SUMIFS('DIARIO DE MOVIMIENTOS'!$E$2:$E$51,'DIARIO DE MOVIMIENTOS'!$D$2:$D$51,\"Gasto\",'DIARIO DE MOVIMIENTOS'!$F$2:$F$51,$H$3,'DIARIO DE MOVIMIENTOS'!$B$2:$B$51,B12))","v":316000},{"$f":"IFERROR(C12/C5,0)","v":5.9633893187393851E-2}]
[null,{"$f":"CONFIGURACION!A5","v":"Servicios"},{"$f":"IF($H$3=0,SUMIFS('DIARIO DE MOVIMIENTOS'!$E$2:$E$51,'DIARIO DE MOVIMIENTOS'!$D$2:$D$51,\"Gasto\",'DIARIO DE MOVIMIENTOS'!$B$2:$B$51,B13),SUMIFS('DIARIO DE MOVIMIENTOS'!$E$2:$E$51,'DIARIO DE MOVIMIENTOS'!$D$2:$D$51,\"Gasto\",'DIARIO DE MOVIMIENTOS'!$F$2:$F$51,$H$3,'DIARIO DE MOVIMIENTOS'!$B$2:$B$51,B13))","v":760000},{"$f":"IFERROR(C13/C5,0)","v":0.14342328741271937}]
[null,{"$f":"CONFIGURACION!A6","v":"Alquiler"},{"$f":"IF($H$3=0,SUMIFS('DIARIO DE MOVIMIENTOS'!$E$2:$E$51,'DIARIO DE MOVIMIENTOS'!$D$2:$D$51,\"Gasto\",'DIARIO DE MOVIMIENTOS'!$B$2:$B$51,B14),SUMIFS('DIARIO DE MOVIMIENTOS'!$E$2:$E$51,'DIARIO DE MOVIMIENTOS'!$D$2:$D$51,\"Gasto\",'DIARIO DE MOVIMIENTOS'!$F$2:$F$51,$H$3,'DIARIO DE MOVIMIENTOS'!$B$2:$B$51,B14))","v":342000},{"$f":"IFERROR(C14/C5,0)","v":6.4540479335723724E-2}]
[null,{"$f":"CONFIGURACION!A7","v":"Salud"},{"$f":"IF($H$3=0,SUMIFS('DIARIO DE MOVIMIENTOS'!$E$2:$E$51,'DIARIO DE MOVIMIENTOS'!$D$2:$D$51,\"Gasto\",'DIARIO DE MOVIMIENTOS'!$B$2:$B$51,B15),SUMIFS('DIARIO DE MOVIMIENTOS'!$E$2:$E$51,'DIARIO DE MOVIMIENTOS'!$D$2:$D$51,\"Gasto\",'DIARIO DE MOVIMIENTOS'!$F$2:$F$51,$H$3,'DIARIO DE MOVIMIENTOS'!$B$2:$B$51,B15))","v":179000},{"$f":"IFERROR(C15/C5,0)","v":3.3779958482732589E-2}]
[null,{"$f":"CONFIGURACION!A8","v":"Educación"},{"$f":"IF($H$3=0,SUMIFS('DIARIO DE MOVIMIENTOS'!$E$2:$E$51,'DIARIO DE MOVIMIENTOS'!$D$2:$D$51,\"Gasto\",'DIARIO DE MOVIMIENTOS'!$B$2:$B$51,B16),SUMIFS('DIARIO DE MOVIMIENTOS'!$E$2:$E$51,'DIARIO DE MOVIMIENTOS'!$D$2:$D$51,\"Gasto\",'DIARIO DE MOVIMIENTOS'!$F$2:$F$51,$H$3,'DIARIO DE MOVIMIENTOS'!$B$2:$B$51,B16))","v":976000},{"$f":"IFERROR(C16/C5,0)","v":0.18418569541422911}]
[null,{"$f":"CONFIGURACION!A9","v":"Ropa"},{"$f":"IF($H$3=0,SUMIFS('DIARIO DE MOVIMIENTOS'!$E$2:$E$51,'DIARIO DE MOVIMIENTOS'!$D$2:$D$51,\"Gasto\",'DIARIO DE MOVIMIENTOS'!$B$2:$B$51,B17),SUMIFS('DIARIO DE MOVIMIENTOS'!$E$2:$E$51,'DIARIO DE MOVIMIENTOS'!$D$2:$D$51,\"Gasto\",'DIARIO DE MOVIMIENTOS'!$F$2:$F$51,$H$3,'DIARIO DE MOVIMIENTOS'!$B$2:$B$51,B17))","v":1103000},{"$f":"IFERROR(C17/C5,0)","v":0.20815248160030195}]
[]
[null,"DESGLOSE DE INGRESOS","Monto"]
[null,{"$f":"CONFIGURACION!B2","v":"Salario"},{"$f":"IF($H$3=0,SUMIFS('DIARIO DE MOVIMIENTOS'!$E$2:$E$51,'DIARIO DE MOVIMIENTOS'!$D$2:$D$51,\"Ingreso\",'DIARIO DE MOVIMIENTOS'!$B$2:$B$51,B20),SUMIFS('DIARIO DE MOVIMIENTOS'!$E$2:$E$51,'DIARIO DE MOVIMIENTOS'!$D$2:$D$51,\"Ingreso\",'DIARIO DE MOVIMIENTOS'!$F$2:$F$51,$H$3,'DIARIO DE MOVIMIENTOS'!$B$2:$B$51,B20))","v":2350000}]
[null,{"$f":"CONFIGURACION!B3","v":"Freelance"},{"$f":"IF($H$3=0,SUMIFS('DIARIO DE MOVIMIENTOS'!$E$2:$E$51,'DIARIO DE MOVIMIENTOS'!$D$2:$D$51,\"Ingreso\",'DIARIO DE MOVIMIENTOS'!$B$2:$B$51,B21),SUMIFS('DIARIO DE MOVIMIENTOS'!$E$2:$E$51,'DIARIO DE MOVIMIENTOS'!$D$2:$D$51,\"Ingreso\",'DIARIO DE MOVIMIENTOS'!$F$2:$F$51,$H$3,'DIARIO DE MOVIMIENTOS'!$B$2:$B$51,B21))","v":5500000}]
[null,{"$f":"CONFIGURACION!B4","v":"Inversiones"},{"$f":"IF($H$3=0,SUMIFS('DIARIO DE MOVIMIENTOS'!$E$2:$E$51,'DIARIO DE MOVIMIENTOS'!$D$2:$D$51,\"Ingreso\",'DIARIO DE MOVIMIENTOS'!$B$2:$B$51,B22),SUMIFS('DIARIO DE MOVIMIENTOS'!$E$2:$E$51,'DIARIO DE MOVIMIENTOS'!$D$2:$D$51,\"Ingreso\",'DIARIO DE MOVIMIENTOS'!$F$2:$F$51,$H$3,'DIARIO DE MOVIMIENTOS'!$B$2:$B$51,B22))","v":2200000}]

{"sheet":"REPORTE PDF","index":4,"n_rows":66,"n_cols":4,"rows_kept":66,"cut":false,"hidden":false,"merged":[[65,2,65,5],[1,0,1,7],[64,2,64,5],[0,0,0,7],[8,1,8,2],[8,3,8,4],[2,0,2,7],[6,3,6,4],[6,1,6,2],[10,1,10,2],[10,3,10,4]]}
["INFORME FINANCIERO DINÁMICO"]
[{"$f":"\"Periodo: \"&'PANEL DE DECISIONES'!C3","v":"Periodo: Todos"}]
["Generado automáticamente"]
[]
[null,"RESUMEN EJECUTIVO"]
[]
[null,"Total Gastos",null,{"$f":"'PANEL DE DECISIONES'!C5","v":5299000}]
[]
[null,"Total Ingresos",null,{"$f":"'PANEL DE DECISIONES'!C6","v":10050000}]
[]
[null,"Balance Neto",null,{"$f":"'PANEL DE DECISIONES'!C7","v":4751000}]
[]
[]
[null,"DETALLE POR CATEGORÍA"]
[null,"Categoría","Monto","% Participación"]
[null,{"$f":"CONFIGURACION!A2","v":"Alimentación"},{"$f":"'PANEL DE DECISIONES'!C10","v":667000},{"$f":"'PANEL DE DECISIONES'!D10","v":0.12587280618984714}]
[null,{"$f":"CONFIGURACION!A3","v":"Transporte"},{"$f":"'PANEL DE DECISIONES'!C11","v":956000},{"$f":"'PANEL DE DECISIONES'!D11","v":0.18041139837705228}]
[null,{"$f":"CONFIGURACION!A4","v":"Ocio"},{"$f":"'PANEL DE DECISIONES'!C12","v":316000},{"$f":"'PANEL DE DECISIONES'!D12","v":5.9633893187393851E-2}]
[null,{"$f":"CONFIGURACION!A5","v":"Servicios"},{"$f":"'PANEL DE DECISIONES'!C13","v":760000},{"$f":"'PANEL DE DECISIONES'!D13","v":0.14342328741271937}]
[null,{"$f":"CONFIGURACION!A6","v":"Alquiler"},{"$f":"'PANEL DE DECISIONES'!C14","v":342000},{"$f":"'PANEL DE DECISIONES'!D14","v":6.4540479335723724E-2}]
[null,{"$f":"CONFIGURACION!A7","v":"Salud"},{"$f":"'PANEL DE DECISIONES'!C15","v":179000},{"$f":"'PANEL DE DECISIONES'!D15","v":3.3779958482732589E-2}]
[null,{"$f":"CONFIGURACION!A8","v":"Educación"},{"$f":"'PANEL DE DECISIONES'!C16","v":976000},{"$f":"'PANEL DE DECISIONES'!D16","v":0.18418569541422911}]
[null,{"$f":"CONFIGURACION!A9","v":"Ropa"},{"$f":"'PANEL DE DECISIONES'!C17","v":1103000},{"$f":"'PANEL DE DECISIONES'!D17","v":0.20815248160030195}]
[]
[null,"FUENTES DE INGRESO"]
[null,"Fuente","Monto"]
[null,{"$f":"CONFIGURACION!B2","v":"Salario"},{"$f":"'PANEL DE DECISIONES'!C20","v":2350000}]
[null,{"$f":"CONFIGURACION!B3","v":"Freelance"},{"$f":"'PANEL DE DECISIONES'!C21","v":5500000}]
[null,{"$f":"CONFIGURACION!B4","v":"Inversiones"},{"$f":"'PANEL DE DECISIONES'!C22","v":2200000}]
[]
[]
[]
[]
[]
[]
[]
[]
[]
[]
[]
[]
[]
[]
[]
[]
[]
[]
[]
[]
[]
[]
[]
[]
[]
[]
[]
[]
[]
[]
[]
[]
[]
[]
[]
[]
[null,null,"Asigne la macro: ExportarReportePDF"]

{"sheet":"AYUDA","index":5,"n_rows":45,"n_cols":5,"rows_kept":45,"cut":false,"hidden":false,"merged":[[0,1,0,11],[43,2,43,11],[1,1,1,11],[19,1,19,11],[36,1,36,11],[27,1,27,11],[42,2,42,11],[28,1,33,11],[41,2,41,11],[40,2,40,11],[3,1,3,11],[11,1,11,11],[12,1,17,11],[44,2,44,11],[20,1,25,11],[38,2,38,11],[39,2,39,11],[4,1,9,11]]}
[null,"CENTRO DE AYUDA — GUÍA RÁPIDA"]
[null,"Domina tu Maestro de Gastos en 5 minutos"]
[]
[null,"PASO 1: Configura tus categorías"]
[null,"Ve a la hoja CONFIGURACION. Ahí encontrarás las categorías de gasto (Alimentación, Transporte, etc.) y las fuentes de ingreso (Salario, Freelance, etc.). Puedes modificarlas según tu realidad. Estas listas alimentan automáticamente los desplegables del Diario."]
[]
[]
[]
[]
[]
[]
[null,"PASO 2: Registra tus movimientos diarios"]
[null,"En la hoja DIARIO DE MOVIMIENTOS, registra cada transacción:\n• Fecha: Día del movimiento\n• Tipo: Selecciona 'Gasto' o 'Ingreso' del desplegable\n• Categoría: Se actualiza automáticamente según el Tipo seleccionado\n• Descripción: Detalle libre del movimiento\n• Valor: Monto en pesos (sin signos, solo números)"]
[]
[]
[]
[]
[]
[]
[null,"PASO 3: Analiza tu situación en el Panel"]
[null,"La hoja PANEL DE DECISIONES se actualiza en tiempo real:\n• Selecciona el periodo en el desplegable (Todos, Febrero, Marzo, Abril)\n• Los KPIs muestran Gastos Totales, Ingresos Totales y Balance\n• Los gráficos 3D se actualizan automáticamente\n• El desglose por categoría te muestra dónde se va tu dinero"]
[]
[]
[]
[]
[]
[]
[null,"PASO 4: Genera tu informe PDF"]
[null,"La hoja REPORTE PDF contiene un informe ejecutivo que se actualiza según el periodo seleccionado.\nPara exportar a PDF:\n1. Guarda el archivo como .xlsm (habilitado para macros)\n2. Presiona Alt+F11 → Insertar → Módulo\n3. Pega el código VBA proporcionado\n4. Asigna la macro al botón 'EXPORTAR INFORME A PDF'\n5. ¡Listo! Un clic y tienes tu informe en el escritorio"]
[]
[]
[]
[]
[]
[]
[]
[null,"GLOSARIO DE TÉRMINOS"]
[null,"Término",null,null,"Definición"]
[null,"Gasto","Cualquier salida de dinero: compras, servicios, arriendo, entretenimiento, etc."]
[null,"Ingreso","Cualquier entrada de dinero: salario, freelance, dividendos, ventas, etc."]
[null,"Balance","Diferencia entre Ingresos y Gastos. Positivo = ahorraste. Negativo = gastaste de más."]
[null,"KPI","Indicador Clave de Rendimiento. Métricas resumidas de tu salud financiera."]
[null,"SUMIFS","Fórmula de Excel que suma valores según múltiples criterios (tipo, categoría, mes)."]
[null,"Periodo","Filtro temporal que permite analizar un mes específico o el total acumulado."]
[null,"Categoría","Agrupación del tipo de gasto o ingreso para facilitar el análisis."]